fUSD/lending_fUSD_20250606
["ID","MTS","AMOUNT","RATE_DAILY","PERIOD"]
[364680068,1749197469648,-474.67354337,0.00030328,7]
[364680069,1749197469659,-480.0,0.00030328,7]
[364680070,1749197469670,-1115.23,0.00030328,7]
[364680071,1749197469680,-480.0,0.00030328,7]
[364680072,1749197469689,-480.0,0.00030328,7]
[364680073,1749197469699,-834.567432,0.00030328,7]
[364680074,1749197469709,-480.0,0.00030328,7]
[364680075,1749197469718,-5263.21,0.00030328,7]
[364680076,1749197469727,-18302.03,0.00030328,7]
[364680077,1749197469738,-1151.55,0.00030328,7]
[364680078,1749197469747,-151.0,0.00030328,7]
[364680079,1749197469756,-2507.72,0.00030328,7]
[364680080,1749197469766,-994.87,0.00030328,7]
[364680081,1749197469775,-496.19,0.00030328,7]
[364680082,1749197469785,-480.0,0.00030328,7]
[364680083,1749197469795,-953.26,0.00030328,7]
[364680084,1749197469804,-480.0,0.00030328,7]
[364680085,1749197469813,-480.0,0.00030328,7]
[364680086,1749197469822,-480.0,0.00030328,7]
[364680087,1749197469832,-353.255473,0.00030328,7]
[364680088,1749197469841,-480.0,0.00030328,7]
[364680089,1749197469851,-1018.89,0.00030328,7]
[364680090,1749197469862,-522.75,0.00030328,7]
[364680091,1749197469871,-480.0,0.00030328,7]
[364680092,1749197469881,-353.255473,0.00030328,7]
[364680093,1749197469890,-575.03944,0.00030328,7]
[364680094,1749197469900,-480.0,0.00030328,7]
[364680095,1749197469909,-1145.19,0.00030328,7]
[364680096,1749197469919,-480.0,0.00030328,7]
[364680097,1749197469928,-159.604154,0.00030328,7]
[364680098,1749197469938,-480.0,0.00030328,7]
[364680099,1749197469948,-159.604154,0.00030328,7]
[364680100,1749197469958,-586.88,0.00030328,7]
[364680101,1749197469968,-417.19906657,0.00030328,7]
[364680102,1749197469977,-599.66,0.00030328,7]
[364680103,1749197469986,-159.604154,0.00030328,7]
[364680104,1749197469996,-480.0,0.00030328,7]
[364680105,1749197470006,-159.604154,0.00030328,7]
[364680106,1749197470015,-480.0,0.00030328,7]
[364680107,1749197470025,-823.56,0.00030328,7]
[364680108,1749197470034,-642.87,0.00030328,2]
[364680109,1749197470044,-894.81,0.00030328,7]
[364680110,1749197470054,-1357.61,0.00030328,7]
[364680111,1749197470063,-480.0,0.00030328,7]
[364680112,1749197470072,-6519.68,0.00030328,7]
[364680113,1749197470082,-151.0,0.00030328,7]
[364680114,1749197470091,-560.12,0.00030328,7]
[364680115,1749197470101,-480.0,0.00030328,7]
[364680116,1749197470111,-168.67287334,0.00030328,7]
[364680117,1749197470121,-2372.89,0.00030328,7]
[364680118,1749197470130,-894.02,0.00030328,7]
[364680119,1749197470139,-438.36805313,0.00030328,7]
[364680120,1749197470149,-754.694887,0.00030328,7]
[364680121,1749197470159,-480.0,0.00030328,7]
[364680122,1749197470168,-480.0,0.00030328,7]
[364680123,1749197470178,-480.0,0.00030328,7]
[364680124,1749197470188,-955.94,0.00030328,7]
[364680125,1749197470197,-480.0,0.00030328,7]
[364680126,1749197470207,-480.0,0.00030328,2]
[364680127,1749197470217,-1367.81,0.00030328,7]
[364680128,1749197470226,-480.0,0.00030328,7]
[364680129,1749197470236,-363.3062526,0.00030328,3]
[364680130,1749197470245,-1302.71,0.00030328,7]
[364680131,1749197470255,-981.45,0.00030328,7]
[364680132,1749197470265,-480.0,0.00030328,7]
[364680133,1749197470274,-480.0,0.00030328,7]
[364680134,1749197470284,-665.71,0.00030328,7]
[364680135,1749197470295,-23916.37,0.00030328,7]
[364680136,1749197470305,-480.0,0.00030328,7]
[364680137,1749197470314,-480.0,0.00030328,7]
[364680138,1749197470324,-628.23543532,0.00030328,7]
[364680139,1749197470334,-480.0,0.00030328,7]
[364680140,1749197470343,-480.0,0.00030328,7]
[364680141,1749197470353,-867.3,0.00030328,7]
[364680142,1749197470363,-480.0,0.00030328,7]
[364680143,1749197470372,-914.480056,0.00030328,7]
[364680144,1749197470383,-470.04607363,0.00030328,7]
[364680145,1749197470393,-480.0,0.00030328,7]
[364680146,1749197470403,-502.03,0.00030328,7]
[364680147,1749197470412,-535.31,0.00030328,7]
[364680148,1749197470422,-480.0,0.00030328,7]
[364680149,1749197470431,-480.0,0.00030328,7]
[364680150,1749197470441,-480.0,0.00030328,7]
[364680151,1749197470452,-587.05638509,0.00030328,7]
[364680152,1749197470462,-805.19,0.00030328,7]
[364680153,1749197470471,-4366.75,0.00030328,7]
[364680154,1749197470482,-521.38,0.0003036,2]
[364680155,1749197470492,-151.0,0.00030373,7]
[364680156,1749197470502,-151.0,0.00030373,7]
[364680157,1749197470511,-992.947527,0.00030373,7]
[364680158,1749197470522,-992.947527,0.00030373,7]
[364680159,1749197470531,-331.623274,0.00030373,7]
[364680160,1749197470541,-331.623274,0.00030373,7]
[364680161,1749197470551,-881.0,0.00030393,5]
[364680162,1749197470560,-3548.69152956,0.00030393,2]
[364680163,1749197470570,-200.0,0.000304,14]
[364680164,1749197470580,-200.0,0.000304,14]
[364680165,1749197470589,-200.0,0.000304,14]
[364680166,1749197470598,-200.0,0.000304,14]
[364680167,1749197470608,-200.0,0.000304,14]
[364680168,1749197470617,-200.0,0.000304,14]
[364680169,1749197470627,-200.0,0.000304,14]
[364680170,1749197470637,-200.0,0.000304,14]
[364680171,1749197470647,-200.0,0.000304,14]
[364680172,1749197470658,-200.0,0.000304,14]
[364680173,1749197470670,-200.0,0.000304,14]
[364680174,1749197470679,-200.0,0.000304,14]
[364680175,1749197470689,-200.0,0.000304,14]
[364680176,1749197470699,-200.0,0.000304,14]
[364680177,1749197470709,-200.0,0.000304,14]
[364680178,1749197470718,-200.0,0.000304,14]
[364680179,1749197470728,-200.0,0.000304,14]
[364680180,1749197470739,-200.0,0.000304,14]
[364680181,1749197470749,-200.0,0.000304,14]
[364680182,1749197470758,-200.0,0.000304,14]
[364680183,1749197470768,-200.0,0.000304,14]
[364680184,1749197470778,-200.0,0.000304,14]
[364680185,1749197470787,-200.0,0.000304,14]
[364680186,1749197470797,-200.0,0.000304,14]
[364680187,1749197470807,-200.0,0.000304,14]
[364680188,1749197470816,-200.0,0.000304,14]
[364680189,1749197470825,-200.0,0.000304,14]
[364680190,1749197470835,-200.0,0.000304,14]
[364680191,1749197470845,-200.0,0.000304,14]
[364680192,1749197470855,-200.0,0.000304,14]
[364680193,1749197470865,-295.0,0.000304,14]
[364680194,1749197470875,-159.0,0.000304,22]
[364680195,1749197470884,-200.516106,0.000304,3]
[364680196,1749197470894,-1500.0,0.000304,3]
[364680197,1749197470905,-3004.21745977,0.00030421,2]
[364680198,1749197470915,-189.15861833,0.00030433,2]
[364680199,1749197470925,-1924.132,0.00030472,26]
[364680200,1749197470935,-163.412,0.00030472,26]
[364680201,1749197470944,-500.0,0.00030492,7]
[364680202,1749197470955,-500.0,0.00030492,7]
[364680203,1749197470964,-184.675395,0.00030492,7]
[364680204,1749197470974,-151.0,0.00030492,7]
[364680205,1749197470988,-157.000071,0.00030492,7]
[364680206,1749197470998,-154.14598,0.00030492,7]
[364680207,1749197471008,-1095.79,0.00030492,2]
[364680208,1749197471018,-1095.79,0.00030492,2]
[364680209,1749197471028,-1095.79,0.00030492,2]
[364680210,1749197471038,-1095.79,0.00030492,2]
[364680211,1749197471047,-1095.79,0.00030492,2]
[364680212,1749197471058,-1095.98966003,0.00030492,2]
[364680213,1749197471068,-166.306015,0.00030492,7]
[364680214,1749197471078,-453.537922,0.00030492,7]
[364680215,1749197471087,-453.537922,0.00030492,7]
[364680216,1749197471099,-339.050092,0.00030492,7]
[364680217,1749197471109,-339.050092,0.00030492,7]
[364680218,1749197471119,-229.42916,0.00030492,7]
[364680219,1749197471129,-229.42916,0.00030492,7]
[364680220,1749197471138,-500.0,0.00030492,7]
[364680221,1749197471148,-500.0,0.00030492,7]
[364680222,1749197471159,-10031.52,0.00030492,7]
[364680223,1749197471169,-10031.52,0.00030492,7]
[364680224,1749197471180,-10031.52,0.00030492,7]
[364680225,1749197471190,-10031.52,0.00030492,7]
[364680226,1749197471201,-10031.52,0.00030492,7]
[364680227,1749197471211,-10031.59196573,0.00030492,7]
[364680228,1749197471221,-554.22,0.00030492,7]
[364680229,1749197471230,-554.22,0.00030492,7]
[364680230,1749197471240,-554.22,0.00030492,7]
[364680231,1749197471251,-554.22,0.00030492,7]
[364680232,1749197471262,-554.22,0.00030492,7]
[364680233,1749197471273,-554.23251791,0.00030492,7]
[364680234,1749197471283,-151.0,0.00030493,7]
[364680235,1749197471293,-152.060502,0.00030493,7]
[364680236,1749197471304,-151.0,0.00030493,7]
[364680237,1749197471314,-151.0,0.00030493,7]
[364680238,1749197471324,-151.0,0.00030493,7]
[364680239,1749197471333,-151.0,0.00030493,7]
[364680240,1749197471342,-151.0,0.00030493,7]
[364680241,1749197471352,-151.0,0.00030493,7]
[364680242,1749197471361,-151.0,0.00030493,7]
[364680243,1749197471371,-151.0,0.00030493,7]
[364680244,1749197471381,-151.0,0.00030493,7]
[364680245,1749197471390,-151.0,0.00030493,7]
[364680246,1749197471400,-151.62552,0.00030493,7]
[364680247,1749197471409,-151.0,0.00030493,7]
[364680248,1749197471420,-151.0,0.00030493,7]
[364680249,1749197471429,-151.0,0.00030493,7]
[364680250,1749197471440,-151.0,0.00030493,7]
[364680251,1749197471449,-316.619214,0.00030493,7]
[364680252,1749197471458,-316.619214,0.00030493,7]
[364680253,1749197471468,-151.0,0.00030493,7]
[364680254,1749197471478,-151.0,0.00030493,7]
[364680255,1749197471487,-151.0,0.00030493,7]
[364680256,1749197471498,-151.0,0.00030493,7]
[364680257,1749197471507,-154.398196,0.00030493,7]
[364680258,1749197471517,-151.0,0.00030493,7]
[364680259,1749197471527,-333.810366,0.00030493,7]
[364680260,1749197471536,-151.0,0.00030493,7]
[364680261,1749197471546,-151.254161,0.00030493,7]
[364680262,1749197471555,-333.810366,0.00030493,7]
[364680263,1749197471565,-151.0,0.00030493,7]
[364680264,1749197471574,-151.0,0.00030493,7]
[364680265,1749197471584,-151.0,0.00030493,7]
[364680266,1749197471594,-151.0,0.00030493,7]
[364680267,1749197471603,-151.0,0.00030493,7]
[364680268,1749197471613,-480.0,0.00030493,7]
[364680269,1749197471622,-905.810309,0.00030493,7]
[364680270,1749197471632,-905.810309,0.00030493,7]
[364680271,1749197471641,-151.0,0.00030493,7]
[364680272,1749197471651,-151.0,0.00030493,7]
[364680273,1749197471664,-151.0,0.00030493,7]
[364680274,1749197471673,-151.0,0.00030493,7]
[364680275,1749197471683,-151.0,0.00030493,7]
[364680276,1749197471692,-151.0,0.00030493,7]
[364680277,1749197471702,-151.0,0.00030493,7]
[364680278,1749197471712,-480.0,0.00030493,7]
[364680279,1749197471720,-151.0,0.00030493,7]
[364680280,1749197471730,-151.0,0.00030493,7]
[364680281,1749197471740,-3881.597127,0.00030493,7]
[364680282,1749197471750,-480.0,0.00030493,7]
[364680283,1749197471759,-383.34317481,0.00030493,7]
[364680284,1749197471769,-616.5657757,0.00030493,7]
[364680285,1749197471778,-480.0,0.00030493,7]
[364680286,1749197471787,-480.0,0.00030493,7]
[364680287,1749197471797,-151.0,0.00030493,7]
[364680288,1749197471806,-480.0,0.00030493,7]
[364680289,1749197471815,-480.0,0.00030493,7]
[364680290,1749197471825,-480.0,0.00030493,7]
[364680291,1749197471835,-490.9305301,0.00030493,7]
[364680292,1749197471844,-557.37242719,0.00030493,7]
[364680293,1749197471853,-480.0,0.00030493,7]
[364680294,1749197471863,-480.0,0.00030493,7]
[364680295,1749197471873,-480.0,0.00030493,7]
[364680296,1749197471882,-151.0,0.00030493,7]
[364680297,1749197471892,-480.0,0.00030493,7]
[364680298,1749197471902,-754.35,0.00030493,7]
[364680299,1749197471911,-480.0,0.00030493,7]
[364680300,1749197471921,-674.88,0.00030493,7]
[364680301,1749197471930,-480.0,0.00030493,7]
[364680302,1749197471939,-151.0,0.00030493,7]
[364680303,1749197471949,-151.0,0.00030493,7]
[364680304,1749197471958,-151.0,0.00030493,7]
[364680305,1749197471968,-734.068906,0.00030493,7]
[364680306,1749197471978,-480.0,0.00030493,7]
[364680307,1749197471988,-480.0,0.00030493,7]
[364680308,1749197471998,-151.0,0.00030493,7]
[364680309,1749197472008,-734.068906,0.00030493,7]
[364680310,1749197472018,-480.0,0.00030493,7]
[364680311,1749197472028,-151.0,0.00030493,7]
[364680312,1749197472038,-480.0,0.00030493,7]
[364680313,1749197472048,-151.0,0.00030493,7]
[364680314,1749197472058,-1092.2,0.00030493,7]
[364680315,1749197472067,-480.0,0.00030493,7]
[364680316,1749197472077,-151.0,0.00030493,7]
[364680317,1749197472087,-480.0,0.00030493,7]
[364680318,1749197472096,-151.0,0.00030493,7]
[364680319,1749197472106,-680.02,0.00030493,7]
[364680320,1749197472115,-480.0,0.00030493,7]
[364680321,1749197472125,-267.494545,0.00030493,7]
[364680322,1749197472135,-480.0,0.00030493,7]
[364680323,1749197472144,-151.0,0.00030493,7]
[364680324,1749197472156,-480.0,0.00030493,7]
[364680325,1749197472165,-480.0,0.00030493,7]
[364680326,1749197472175,-480.0,0.00030493,7]
[364680327,1749197472185,-505.315916,0.00030493,7]
[364680328,1749197472194,-505.315916,0.00030493,7]
[364680329,1749197472205,-480.0,0.00030493,7]
[364680330,1749197472214,-151.0,0.00030493,7]
[364680331,1749197472224,-151.0,0.00030493,7]
[364680332,1749197472234,-480.0,0.00030493,7]
[364680333,1749197472243,-151.0,0.00030493,7]
[364680334,1749197472253,-480.0,0.00030493,7]
[364680335,1749197472264,-480.0,0.00030493,7]
[364680336,1749197472274,-151.0,0.00030493,7]
[364680337,1749197472283,-497.18335319,0.00030493,7]
[364680338,1749197472295,-480.0,0.00030493,7]
[364680339,1749197472304,-603.53459709,0.00030493,7]
[364680340,1749197472314,-555.69,0.00030493,7]
[364680341,1749197472323,-480.0,0.00030493,7]
[364680342,1749197472332,-480.0,0.00030493,7]
[364680343,1749197472342,-620.89,0.00030493,7]
[364680344,1749197472351,-480.0,0.00030493,7]
[364680345,1749197472361,-686.94,0.00030493,7]
[364680346,1749197472370,-151.0,0.00030493,7]
[364680347,1749197472380,-555.19,0.00030493,7]
[364680348,1749197472389,-480.0,0.00030493,7]
[364680349,1749197472399,-151.0,0.00030493,7]
[364680350,1749197472410,-480.0,0.00030493,7]
[364680351,1749197472419,-816.32,0.00030493,7]
[364680352,1749197472428,-480.0,0.00030493,7]
[364680353,1749197472438,-480.0,0.00030493,7]
[364680354,1749197472447,-579.166829,0.00030493,7]
[364680355,1749197472457,-746.12,0.00030493,7]
[364680356,1749197472466,-579.166829,0.00030493,7]
[364680357,1749197472475,-553.55,0.00030493,7]
[364680358,1749197472485,-480.0,0.00030493,7]
[364680359,1749197472495,-479.37959101,0.00030493,7]
[364680360,1749197472505,-546.00460795,0.00030493,7]
[364680361,1749197472514,-647.9,0.00030493,7]
[364680362,1749197472523,-480.0,0.00030493,7]
[364680363,1749197472533,-480.0,0.00030493,7]
[364680364,1749197472542,-480.0,0.00030493,7]
[364680365,1749197472552,-480.0,0.00030493,7]
[364680366,1749197472562,-151.0,0.00030493,7]
[364680367,1749197472571,-480.0,0.00030493,7]
[364680368,1749197472580,-480.0,0.00030493,7]
[364680369,1749197472590,-501.9438728,0.00030493,7]
[364680370,1749197472600,-884.4,0.00030493,7]
[364680371,1749197472610,-615.17,0.00030493,7]
[364680372,1749197472619,-637.3,0.00030493,7]
[364680373,1749197472629,-480.0,0.00030493,7]
[364680374,1749197472638,-480.0,0.00030493,7]
[364680375,1749197472648,-151.0,0.00030493,7]
[364680376,1749197472658,-480.0,0.00030493,7]
[364680377,1749197472670,-480.0,0.00030493,7]
[364680378,1749197472679,-480.0,0.00030493,7]
[364680379,1749197472689,-192.517797,0.00030493,7]
[364680380,1749197472698,-496.33,0.00030493,7]
[364680381,1749197472709,-480.0,0.00030493,7]
[364680382,1749197472718,-480.0,0.00030493,7]
[364680383,1749197472727,-192.517797,0.00030493,7]
[364680384,1749197472738,-480.0,0.00030493,7]
[364680385,1749197472747,-151.0,0.00030493,7]
[364680386,1749197472756,-480.0,0.00030493,7]
[364680387,1749197472766,-480.0,0.00030493,7]
[364680388,1749197472776,-250.0,0.00030493,7]
[364680389,1749197472786,-480.0,0.00030493,7]
[364680390,1749197472795,-506.43,0.00030493,7]
[364680391,1749197472805,-480.0,0.00030493,7]
[364680392,1749197472814,-480.0,0.00030493,7]
[364680393,1749197472824,-480.0,0.00030493,7]
[364680394,1749197472833,-480.0,0.00030493,7]
[364680395,1749197472843,-480.0,0.00030493,7]
[364680396,1749197472853,-480.0,0.00030493,7]
[364680397,1749197472862,-480.0,0.00030493,7]
[364680398,1749197472872,-480.0,0.00030493,7]
[364680399,1749197472881,-480.0,0.00030493,7]
[364680400,1749197472891,-992.947527,0.00030493,7]
[364680401,1749197473126,-480.0,0.00030493,7]
[364680402,1749197473137,-495.83858988,0.00030493,7]
[364680403,1749197473147,-151.0,0.00030493,7]
[364680404,1749197473157,-438.90016387,0.00030493,7]
[364680405,1749197473167,-882.83,0.00030493,7]
[364680406,1749197473177,-992.947527,0.00030493,7]
[364680407,1749197473187,-920.7,0.00030493,7]
[364680408,1749197473197,-151.0,0.00030493,7]
[364680409,1749197473207,-490.52,0.00030493,7]
[364680410,1749197473217,-480.0,0.00030493,7]
[364680411,1749197473226,-652.94,0.00030493,7]
[364680412,1749197473236,-480.0,0.00030493,7]
[364680413,1749197473245,-266.05293358,0.00030493,7]
[364680414,1749197473254,-816.26,0.00030493,7]
[364680415,1749197473264,-480.0,0.00030493,7]
[364680416,1749197473273,-480.0,0.00030493,7]
[364680417,1749197473283,-480.0,0.00030493,7]
[364680418,1749197473293,-246.601412,0.00030493,7]
[364680419,1749197473303,-480.0,0.00030493,7]
[364680420,1749197473312,-480.0,0.00030493,7]
[364680421,1749197473322,-480.0,0.00030493,7]
[364680422,1749197473332,-808.75,0.00030493,7]
[364680423,1749197473341,-246.601412,0.00030493,7]
[364680424,1749197473350,-480.0,0.00030493,7]
[364680425,1749197473360,-1490.588028,0.00030493,7]
[364680426,1749197473369,-172.36670289,0.00030493,7]
[364680427,1749197473378,-480.0,0.00030493,7]
[364680428,1749197473388,-1490.588028,0.00030493,7]
[364680429,1749197473398,-480.0,0.00030493,7]
[364680430,1749197473407,-151.0,0.00030493,7]
[364680431,1749197473416,-889.93,0.00030493,7]
[364680432,1749197473426,-480.0,0.00030493,7]
[364680433,1749197473437,-151.0,0.00030493,7]
[364680434,1749197473446,-480.0,0.00030493,7]
[364680435,1749197473457,-480.0,0.00030493,7]
[364680436,1749197473467,-1492.07,0.00030493,7]
[364680437,1749197473476,-570.19,0.00030493,7]
[364680438,1749197473486,-496.35132524,0.00030493,7]
[364680439,1749197473496,-480.0,0.00030493,7]
[364680440,1749197473505,-259.564689,0.00030493,7]
[364680441,1749197473514,-480.0,0.00030493,7]
[364680442,1749197473523,-883.22,0.00030493,7]
[364680443,1749197473533,-294.85269603,0.00030493,7]
[364680444,1749197473543,-211.33821141,0.00030493,7]
[364680445,1749197473552,-259.564689,0.00030493,7]
[364680446,1749197473562,-151.0,0.00030493,7]
[364680447,1749197473571,-480.0,0.00030493,7]
[364680448,1749197473580,-480.0,0.00030493,7]
[364680449,1749197473589,-480.0,0.00030493,7]
[364680450,1749197473598,-480.0,0.00030493,7]
[364680451,1749197473608,-480.0,0.00030493,7]
[364680452,1749197473617,-480.0,0.00030493,7]
[364680453,1749197473626,-480.0,0.00030493,7]
[364680454,1749197473636,-1011.1,0.00030493,7]
[364680455,1749197473645,-480.0,0.00030493,7]
[364680456,1749197473655,-532.75,0.00030493,7]
[364680457,1749197473668,-480.0,0.00030493,7]
[364680458,1749197473677,-480.0,0.00030493,7]
[364680459,1749197473686,-480.0,0.00030493,7]
[364680460,1749197473696,-1640.94,0.00030493,7]
[364680461,1749197473707,-480.0,0.00030493,7]
[364680462,1749197473715,-480.0,0.00030493,7]
[364680463,1749197473725,-499.43211618,0.00030493,7]
[364680464,1749197473735,-480.0,0.00030493,7]
[364680465,1749197473744,-480.0,0.00030493,7]
[364680466,1749197473753,-480.0,0.00030493,7]
[364680467,1749197473762,-480.0,0.00030493,7]
[364680468,1749197473780,-833.22,0.00030493,7]
[364680469,1749197473789,-480.0,0.00030493,7]
[364680470,1749197473798,-233.31071235,0.00030493,7]
[364680471,1749197473808,-480.0,0.00030493,7]
[364680472,1749197473817,-480.0,0.00030493,7]
[364680473,1749197473826,-497.879911,0.00030493,7]
[364680474,1749197473835,-480.0,0.00030493,7]
[364680475,1749197473845,-521.94,0.00030493,7]
[364680476,1749197473855,-1265.84,0.00030493,7]
[364680477,1749197473864,-480.0,0.00030493,7]
[364680478,1749197473873,-444.11496332,0.00030493,7]
[364680479,1749197473882,-476.511358,0.00030493,7]
[364680480,1749197473892,-476.511358,0.00030493,7]
[364680481,1749197473901,-480.0,0.00030493,7]
[364680482,1749197473910,-480.0,0.00030493,7]
[364680483,1749197473920,-480.0,0.00030493,7]
[364680484,1749197473929,-480.0,0.00030493,7]
[364680485,1749197473939,-480.0,0.00030493,7]
[364680486,1749197473949,-801.07,0.00030493,7]
[364680487,1749197473959,-480.0,0.00030493,7]
[364680488,1749197473969,-771.47,0.00030493,7]
[364680489,1749197473979,-973.74,0.00030493,7]
[364680490,1749197473989,-943.56,0.00030493,7]
[364680491,1749197474000,-480.0,0.00030493,7]
[364680492,1749197474010,-480.0,0.00030493,7]
[364680493,1749197474019,-502.45176201,0.00030493,7]
[364680494,1749197474029,-1859.07,0.00030493,7]
[364680495,1749197474039,-480.0,0.00030493,7]
[364680496,1749197474049,-480.0,0.00030493,7]
[364680497,1749197474059,-151.0,0.00030493,7]
[364680498,1749197474070,-480.0,0.00030493,7]
[364680499,1749197474080,-1350.38,0.00030493,7]
[364680500,1749197474090,-491.53831758,0.00030493,7]
[364680501,1749197474101,-151.0,0.00030493,7]
[364680502,1749197474111,-300.0,0.00030493,7]
[364680503,1749197474121,-558.33,0.00030493,7]
[364680504,1749197474131,-150.0,0.00030493,2]
[364680505,1749197474141,-480.0,0.00030493,7]
[364680506,1749197474150,-480.0,0.00030493,7]
[364680507,1749197474160,-480.0,0.00030493,7]
[364680508,1749197474170,-1533.58,0.00030493,7]
[364680509,1749197474180,-241.24566595,0.00030493,7]
[364680510,1749197474190,-759.98,0.00030493,7]
[364680511,1749197474199,-10600.37916782,0.00030493,2]
[364680512,1749197474209,-151.0,0.00030493,7]
[364680513,1749197474219,-480.0,0.00030493,7]
[364680514,1749197474229,-480.0,0.00030493,7]
[364680515,1749197474239,-583.17,0.00030493,7]
[364680516,1749197474250,-480.0,0.00030493,7]
[364680517,1749197474260,-800.0,0.00030493,11]
[364680518,1749197474271,-633.72,0.00030493,7]
[364680519,1749197474281,-800.0,0.00030493,11]
[364680520,1749197474294,-480.0,0.00030493,7]
[364680521,1749197474304,-800.0,0.00030493,11]
[364680522,1749197474315,-800.0,0.00030493,11]
[364680523,1749197474324,-800.0,0.00030493,11]
[364680524,1749197474334,-800.0,0.00030493,11]
[364680525,1749197474344,-2050.82958828,0.00030493,7]
[364680526,1749197474354,-800.0,0.00030493,11]
[364680527,1749197474363,-800.0,0.00030493,11]
[364680528,1749197474373,-800.0,0.00030493,11]
[364680529,1749197474384,-820.40048884,0.00030493,11]
[364680530,1749197474394,-480.0,0.00030493,7]
[364680531,1749197474404,-331.623274,0.00030493,7]
[364680532,1749197474415,-491.28247141,0.00030493,7]
[364680533,1749197474425,-845.77,0.00030493,7]
[364680534,1749197474435,-480.0,0.00030493,7]
[364680535,1749197474446,-1568.45,0.00030493,7]
[364680536,1749197474456,-232.6460603,0.00030493,7]
[364680537,1749197474466,-480.0,0.00030493,7]
[364680538,1749197474476,-331.623274,0.00030493,7]
[364680539,1749197474486,-685.08,0.00030493,7]
[364680540,1749197474496,-480.0,0.00030493,7]
[364680541,1749197474506,-151.0,0.00030493,7]
[364680542,1749197474516,-1963.97,0.00030493,7]
[364680543,1749197474525,-480.0,0.00030493,7]
[364680544,1749197474535,-151.0,0.00030493,7]
[364680545,1749197474545,-480.0,0.00030493,7]
[364680546,1749197474554,-480.0,0.00030493,7]
[364680547,1749197474564,-489.29167731,0.00030493,7]
[364680548,1749197474573,-1619.87,0.00030493,7]
[364680549,1749197474583,-480.0,0.00030493,7]
[364680550,1749197474593,-480.0,0.00030493,7]
[364680551,1749197474603,-480.0,0.00030493,7]
[364680552,1749197474612,-480.0,0.00030493,7]
[364680553,1749197474622,-480.0,0.00030493,7]
[364680554,1749197474632,-480.0,0.00030493,7]
[364680555,1749197474641,-489.03950304,0.00030493,7]
[364680556,1749197474651,-492.25807826,0.00030493,7]
[364680557,1749197474663,-480.0,0.00030493,7]
[364680558,1749197474673,-2063.81,0.00030493,7]
[364680559,1749197474682,-480.0,0.00030493,7]
[364680560,1749197474692,-480.0,0.00030493,7]
[364680561,1749197474702,-480.0,0.00030493,7]
[364680562,1749197474712,-480.0,0.00030493,7]
[364680563,1749197474722,-480.0,0.00030493,7]
[364680564,1749197474731,-151.0,0.00030493,7]
[364680565,1749197474743,-825.43,0.00030493,7]
[364680566,1749197474753,-480.0,0.00030493,7]
[364680567,1749197474762,-1338.49,0.00030493,7]